fUST/lending_fUST_20251103
["ID","MTS","AMOUNT","RATE_DAILY","PERIOD"]
[392918702,1762138246199,-500.0,0.00033096,2]
[392918703,1762138246209,-500.0,0.00033151,2]
[392918704,1762138246220,-500.0,0.00033151,2]
[392918705,1762138246230,-181.32620284,0.000332,117]
[392918706,1762138246240,-500.0,0.00033206,2]
[392918707,1762138246251,-500.0,0.00033206,2]
[392918708,1762138246261,-500.0,0.0003326,2]
[392918709,1762138246271,-500.0,0.0003326,2]
[392918710,1762138246280,-500.0,0.00033315,2]
[392918711,1762138246289,-500.0,0.00033315,2]
[392918712,1762138246299,-500.0,0.0003337,2]
[392918713,1762138246309,-297.7809421,0.000334,120]
[392918714,1762138246322,-4.68626898,0.000334,120]
[392918715,1762138246332,-1447.65855662,0.000334,120]
[392918716,1762138246343,-198.59570493,0.000334,120]
[392918717,1762138246354,-177.43232892,0.000334,120]
[392918718,1762138246363,-520.90377975,0.000334,120]
[392918719,1762138246373,-289.6698874,0.000334,120]
[392918720,1762138246382,-1218.89263779,0.000334,120]
[392918721,1762138246391,-542.92127843,0.000334,120]
[392918722,1762138246400,-178.79950481,0.000334,120]
[392918723,1762138246410,-220.33159764,0.000334,120]
[392918724,1762138246419,-395.6761675,0.00033699,2]
[392918725,1762138246428,-516.52484853,0.00034166,120]
[392918726,1762138246437,-3530.27192909,0.00034216,2]
[392918727,1762138246446,-2710.99046745,0.00034257,2]
[392918728,1762138246455,-155.44,0.000343,30]
[392918729,1762138246463,-302.46721108,0.000344,120]
[392918730,1762138246473,-1447.65855662,0.000344,120]
[392918731,1762138246482,-198.59570493,0.000344,120]
[392918732,1762138246491,-177.43232892,0.000344,120]
[392918733,1762138246500,-520.90377975,0.000344,120]
[392918734,1762138246510,-289.6698874,0.000344,120]
[392918735,1762138246519,-542.92127843,0.000344,120]
[392918736,1762138246528,-1218.89263779,0.000344,120]
[392918737,1762138246538,-178.79950481,0.000344,120]
[392918738,1762138246550,-220.33159764,0.000344,120]
[392918739,1762138246559,-264.62,0.000347,12]
[392918740,1762138246569,-62785.498638,0.0003499,2]
[392918741,1762138246582,-265171.14263811,0.00035,7]
[392918742,1762138246685,-7579.99999978,0.00035,7]
[392918743,1762138246803,-16854.627866,0.00035,7]
[392918744,1762138270132,506.97523429,0.00030136,120]
[392918747,1762138308543,501.93742022,0.00037357,60]
[392918748,1762138309031,501.62760193,0.00037357,60]
[392918751,1762138317728,612.66336549,0.00037357,60]
[392918752,1762138319440,509.12963562,0.00037357,60]
[392918753,1762138324298,502.18644104,0.00037357,60]
[392918754,1762138326721,300.0,0.00037357,60]
[392918755,1762138327351,300.0,0.00037357,60]
[392918756,1762138327946,300.0,0.00037357,60]
[392918757,1762138328554,300.0,0.00037357,60]
[392918758,1762138329164,300.0,0.00037357,60]
[392918759,1762138329797,300.0,0.00037357,60]
[392918760,1762138330483,300.0,0.00037357,60]
[392918761,1762138331102,300.0,0.00037357,60]
[392918762,1762138331749,300.0,0.00037357,60]
[392918763,1762138332362,300.0,0.00037357,60]
[392918764,1762138332995,300.0,0.00037357,60]
[392918765,1762138333596,300.0,0.00037357,60]
[392918766,1762138334196,300.0,0.00037357,60]
[392918767,1762138334597,502.77329991,0.00037357,120]
[392918768,1762138334800,300.0,0.00037357,60]
[392918769,1762138334864,505.13482363,0.00037357,60]
[392918770,1762138335397,300.0,0.00037357,60]
[392918771,1762138339706,509.37541752,0.00037357,60]
[392918772,1762138353463,507.19811725,0.00037357,60]
[392918773,1762138353580,500.9940374,0.00037357,60]
[392918774,1762138355289,502.82379041,0.00037357,60]
[392918775,1762138357220,500.0,0.00037357,60]
[392918776,1762138363062,280.83010088,0.00037357,60]
[392918777,1762138364196,501.08032248,0.00037357,60]
[392918778,1762138366772,380.44405478,0.00037357,60]
[392918779,1762138370439,500.0,0.00037357,60]
[392918780,1762138370572,166.57880383,0.00037357,60]
[392918781,1762138372349,500.0,0.00037357,60]
[392918782,1762138372410,500.0,0.00037357,60]
[392918783,1762138372467,505.64033666,0.00037357,60]
[392918784,1762138380384,503.35416443,0.00037338,60]
[392918785,1762138383883,504.09281134,0.00037338,60]
[392918786,1762138386224,460.0,0.00037338,60]
[392918787,1762138393264,507.8172935,0.00037338,60]
[392918788,1762138393702,500.0,0.00037338,60]
[392918789,1762138393971,500.0,0.00037338,60]
[392918790,1762138394237,500.0,0.00037338,60]
[392918791,1762138394466,500.0,0.00037338,60]
[392918792,1762138401374,532.94539209,0.00037338,30]
[392918793,1762138402166,505.76172309,0.00037338,60]
[392918794,1762138403208,247.67647596,0.00037338,60]
[392918795,1762138403274,500.0,0.00037338,60]
[392918796,1762138405547,311.85564413,0.00037338,60]
[392918797,1762138405829,507.86146052,0.00037338,60]
[392918798,1762138407912,501.44834947,0.00037338,60]
[392918799,1762138409660,513.06482897,0.00037338,60]
[392918802,1762138413573,507.66954541,0.00037338,60]
[392918803,1762138415587,500.0,0.00037338,60]
[392918804,1762138415934,500.0,0.00037338,60]
[392918805,1762138416086,500.0,0.00037338,60]
[392918806,1762138416354,500.0,0.00037338,60]
[392918807,1762138416594,534.13038985,0.00037338,60]
[392918808,1762138418470,507.57374216,0.00037338,60]
[392918809,1762138418646,500.0,0.00037338,60]
[392918810,1762138418891,500.0,0.00037338,60]
[392918811,1762138419157,500.0,0.00037338,60]
[392918812,1762138419404,500.0,0.00037338,60]
[392918813,1762138419659,500.0,0.00037338,60]
[392918814,1762138419909,500.0,0.00037338,60]
[392918815,1762138420180,500.0,0.00037338,60]
[392918816,1762138420283,515.70271054,0.00037338,60]
[392918817,1762138420409,500.0,0.00037338,60]
[392918818,1762138420643,500.0,0.00037338,60]
[392918819,1762138420880,500.0,0.00037338,60]
[392918820,1762138421122,517.93645,0.00037338,60]
[392918821,1762138422130,461.48010708,0.00037338,60]
[392918822,1762138423922,512.99741969,0.00037338,60]
[392918823,1762138424244,322.32139567,0.00037338,60]
[392918824,1762138424598,500.0,0.00037338,60]
[392918825,1762138424858,500.0,0.00037338,60]
[392918826,1762138425163,500.0,0.00037338,60]
[392918827,1762138425427,500.0,0.00037338,60]
[392918828,1762138425673,500.0,0.00037338,60]
[392918829,1762138425913,500.0,0.00037338,60]
[392918830,1762138426180,500.0,0.00037338,60]
[392918831,1762138426448,500.0,0.00037338,60]
[392918832,1762138426721,599.38,0.00037338,60]
[392918833,1762138426795,526.96961897,0.00037338,60]
[392918834,1762138428715,500.0,0.00037338,60]
[392918835,1762138434688,506.11895457,0.00037338,60]
[392918836,1762138435775,500.0,0.00037338,60]
[392918837,1762138436604,518.69706963,0.00037338,60]
[392918838,1762138440180,500.0,0.00037338,60]
[392918839,1762138440750,500.82850471,0.00037338,60]
[392918840,1762138442502,502.32637631,0.00037338,60]
[392918841,1762138444286,501.19407676,0.00037338,60]
[392918842,1762138451160,505.74709411,0.00037338,60]
[392918843,1762138453886,500.0,0.00037338,60]
[392918844,1762138455635,504.98782971,0.00037338,60]
[392918845,1762138457446,532.98912053,0.00037338,60]
[392918846,1762138457749,512.07751095,0.00037338,60]
[392918847,1762138460785,588.83479749,0.00037338,60]
[392918848,1762138461205,526.82991832,0.00037338,60]
[392918849,1762138461299,504.47652217,0.00037338,60]
[392918850,1762138462958,506.15644692,0.00037338,60]
[392918851,1762138467224,501.35037208,0.00037338,60]
[392918852,1762138469025,540.77290605,0.00037338,60]
[392918853,1762138469190,509.01615307,0.00037338,60]
[392918854,1762138470552,175.28653444,0.00037338,60]
[392918855,1762138470925,561.55331076,0.00037338,60]
[392918856,1762138472726,504.89198586,0.00037338,60]
[392918857,1762138474524,506.12582282,0.00037338,60]
[392918858,1762138476297,507.9638456,0.00037338,60]
[392918859,1762138479820,502.42685787,0.00037338,60]
[392918860,1762138480424,500.0,0.00037338,60]
[392918861,1762138482672,502.29172723,0.00037338,60]
[392918862,1762138483546,503.42996938,0.00037338,60]
[392918863,1762138484500,504.35180638,0.00037338,60]
[392918864,1762138485483,525.77977157,0.00037338,60]
[392918865,1762138486563,511.40260771,0.00037338,60]
[392918866,1762138488376,514.63425161,0.00037338,60]
[392918867,1762138489190,511.70731954,0.00037338,60]
[392918868,1762138490802,500.0,0.00037338,60]
[392918869,1762138492196,503.39313585,0.00037338,60]
[392918870,1762138492546,507.60551463,0.00037338,60]
[392918871,1762138493986,506.65944527,0.00037338,60]
[392918872,1762138504234,607.11786838,0.00037338,60]
[392918873,1762138506044,500.0,0.00037338,60]
[392918874,1762138506373,534.57795667,0.00037338,60]
[392918875,1762138506482,500.0,0.00037338,120]
[392918876,1762138507090,500.0,0.00037338,120]
[392918877,1762138507685,500.0,0.00037338,120]
[392918878,1762138508335,500.0,0.00037338,120]
[392918879,1762138508940,500.0,0.00037338,120]
[392918880,1762138509554,500.0,0.00037338,120]
[392918881,1762138509932,500.69536341,0.00037338,60]
[392918882,1762138510155,500.0,0.00037338,120]
[392918883,1762138510755,500.0,0.00037338,120]
[392918884,1762138511050,500.0,0.00037338,60]
[392918885,1762138511125,151.0,0.00037338,120]
[392918886,1762138511400,500.0,0.00037338,120]
[392918887,1762138511736,151.0,0.00037338,120]
[392918888,1762138511838,502.81918499,0.00037338,60]
[392918889,1762138512019,500.0,0.00037338,120]
[392918890,1762138512589,151.0,0.00037338,120]
[392918891,1762138512664,500.0,0.00037338,120]
[392918892,1762138512998,500.0,0.00037338,60]
[392918893,1762138513073,507.22907573,0.00037338,60]
[392918894,1762138513156,151.0,0.00037338,120]
[392918895,1762138513232,500.0,0.00037338,120]
[392918896,1762138513306,500.0,0.00037338,60]
[392918897,1762138513492,500.0,0.00037338,60]
[392918898,1762138513656,514.16234368,0.00037338,60]
[392918899,1762138513732,500.0,0.00037338,60]
[392918900,1762138513816,500.0,0.00037338,120]
[392918901,1762138513893,151.0,0.00037338,120]
[392918902,1762138514517,500.0,0.00037338,120]
[392918903,1762138514596,151.0,0.00037338,120]
[392918904,1762138515130,500.0,0.00037338,120]
[392918905,1762138515204,151.0,0.00037338,120]
[392918906,1762138515764,500.0,0.00037338,120]
[392918907,1762138516395,500.0,0.00037338,120]
[392918908,1762138520611,505.84253208,0.00037338,60]
[392918909,1762138535863,506.39770339,0.00037338,60]
[392918910,1762138537650,507.37532723,0.00037338,60]
[392918911,1762138545307,520.10913944,0.00037338,60]
[392918912,1762138547924,505.33008672,0.00037338,60]
[392918913,1762138551494,504.75720226,0.00037338,60]
[392918914,1762138555148,505.925044,0.00037338,60]
[392918915,1762138558516,515.15728693,0.00037338,60]
[392918916,1762138561906,501.70330981,0.00037338,60]
[392918917,1762138563820,517.79195152,0.00037338,60]
[392918918,1762138567856,506.40834918,0.00037338,60]
[392918919,1762138569571,523.46188084,0.00037338,60]
[392918920,1762138572990,511.81257308,0.00037338,60]
[392918921,1762138574774,506.85106926,0.00037338,60]
[392918922,1762138576710,505.41898946,0.00037338,60]
[392918923,1762138580134,512.78226821,0.00037338,60]
[392918924,1762138581205,502.4981746,0.00037338,60]
[392918925,1762138583008,500.0,0.00037338,60]
[392918926,1762138586036,501.42568807,0.00037338,60]
[392918927,1762138587835,528.26836201,0.00037338,60]
[392918928,1762138589616,501.71011638,0.00037338,60]
[392918929,1762138591430,506.14956728,0.00037338,60]
[392918930,1762138591501,502.33320869,0.00037338,60]
[392918931,1762138624089,500.87680096,0.00037338,60]
[392918932,1762138624962,503.15652311,0.00037338,60]
[392918933,1762138627318,511.09730538,0.00037338,60]
[392918935,1762138628362,506.81490522,0.00037338,60]
[392918936,1762138629237,503.94017782,0.00037338,60]
[392918938,1762138634446,506.91189236,0.00037338,60]
[392918939,1762138641980,514.88565483,0.00037338,60]
[392918940,1762138653897,639.00923436,0.00037338,60]
[392918941,1762138653993,500.0,0.00037338,60]
[392918942,1762138667957,503.78907687,0.00037338,60]
[392918943,1762138673917,503.31956333,0.00037338,60]
[392918944,1762138676011,508.81431176,0.00037338,60]
[392918946,1762138693821,506.90199956,0.00037355,60]
[392918948,1762138704448,500.0,0.00037355,60]
[392918949,1762138704704,256.02426863,0.00037355,60]
[392918950,1762138713433,500.0,0.00037355,60]
[392918951,1762138713671,500.0,0.00037355,60]
[392918952,1762138724300,518.57641887,0.00037355,60]
[392918988,1762138838581,500.0,0.00037355,60]
[392918989,1762138839199,601.9,0.00037355,60]
[392918991,1762138859881,500.0,0.00037355,60]
[392918992,1762138874584,500.82049052,0.00037355,60]
[392918993,1762138879540,517.33789401,0.00037355,60]
[392918994,1762138885114,500.0,0.00037355,60]
[392918995,1762138886814,503.70654736,0.00037355,60]
[392918996,1762138887040,506.55227696,0.00037355,60]
[392918997,1762138907057,537.81140767,0.00037355,60]
[392919001,1762138930310,621.06,0.00037355,60]
[392919002,1762138930542,621.06,0.00037355,60]
[392919003,1762138930814,621.06,0.00037355,60]
[392919004,1762138931051,621.06,0.00037355,60]
[392919005,1762138931286,621.06,0.00037355,60]
[392919006,1762138931574,621.06,0.00037355,60]
[392919007,1762138931758,621.06,0.00037355,60]
[392919008,1762138931985,621.06,0.00037355,60]
[392919009,1762138932232,621.06,0.00037355,60]
[392919010,1762138932467,621.06,0.00037355,60]
[392919011,1762138932715,621.06,0.00037355,60]
[392919012,1762138932967,621.06,0.00037355,60]
[392919013,1762138933206,621.06,0.00037355,60]
[392919014,1762138933439,621.06,0.00037355,60]
[392919015,1762138933667,621.06,0.00037355,60]
[392919016,1762138933939,621.06,0.00037355,60]
[392919017,1762138934185,621.06,0.00037355,60]
[392919018,1762138934421,621.06,0.00037355,60]
[392919019,1762138934690,621.06,0.00037355,60]
[392919020,1762138934979,621.06,0.00037355,60]
[392919021,1762138935402,621.06,0.00037355,120]
[392919022,1762138935705,621.06,0.00037355,120]
[392919023,1762138935965,621.06,0.00037355,120]
[392919024,1762138936320,621.20991588,0.00037355,120]
[392919026,1762138952678,501.24018731,0.00037355,60]
[392919028,1762138978068,4942.71,0.00037355,60]
[392919031,1762139036882,2535.44637762,0.00037356,20]
[392919032,1762139038853,505.08517061,0.00037356,60]
[392919033,1762139041172,5000.0,0.00032877,120]
[392919034,1762139043797,501.77731172,0.00037356,60]
[392919035,1762139063566,503.88545264,0.00037356,60]
[392919036,1762139083370,503.9220585,0.00037356,60]
[392919062,1762139256782,501.55393726,0.00037356,60]
[392919064,1762139259797,501.54991997,0.00037356,60]
[392919065,1762139262881,501.46279783,0.00037356,60]
[392919066,1762139264386,501.97156429,0.00037356,60]
[392919067,1762139271466,504.83935749,0.00037356,60]
[392919068,1762139276166,192.27968978,0.00037356,60]
[392919070,1762139279308,505.2980038,0.00037356,60]
[392919073,1762139280922,448.68692672,0.00037356,60]
[392919078,1762139291359,505.55151125,0.00037356,60]
[392919082,1762139326788,1000.0,0.00032877,120]
[392919085,1762139329691,760.963478,0.00013699,2]
[392919088,1762139408071,4179.26944541,0.00018032,2]
[392919132,1762139432074,-238.0,0.0001823,2]
[392919134,1762139432084,-209.0782347,0.00018247,2]
[392919136,1762139432093,-300.0,0.00018297,2]
[392919138,1762139432102,-300.0,0.00018297,2]
[392919140,1762139432111,-203.0,0.00018297,2]
[392919142,1762139432120,-1200.0,0.00018297,2]
[392919143,1762139432130,-159.22049582,0.00018298,2]
[392919145,1762139432139,-500.0,0.00018298,2]
[392919147,1762139432148,-173.46242717,0.00018298,2]
[392919149,1762139432158,-200.0,0.00018298,2]
[392919151,1762139432167,-212.51123704,0.00018298,2]
[392919153,1762139432176,-500.0,0.00018298,2]
[392919155,1762139432185,-508.71763206,0.00018298,2]
[392919157,1762139432194,-3062.60682502,0.00018299,2]
[392919159,1762139432204,-500.0,0.00018299,2]
[392919161,1762139432213,-500.0,0.00018299,2]
[392919163,1762139432223,-500.0,0.00018299,2]
[392919165,1762139432233,-500.0,0.00018299,2]
[392919167,1762139432242,-500.0,0.00018299,2]
[392919168,1762139432251,-504.39231402,0.00018299,2]
[392919171,1762139432263,-500.0,0.00018299,2]
[392919174,1762139432273,-621.74977816,0.00018299,2]
[392919175,1762139432282,-1694.3690422,0.00018299,2]
[392919177,1762139432290,-1303.96887667,0.00018299,2]
[392919180,1762139432302,-1945.3148998,0.00018299,2]
[392919182,1762139432311,-19855.07365814,0.000183,2]
[392919219,1762139437864,-2363.75796987,0.000183,2]
[392919278,1762139438422,5000.0,0.0001801,2]
[392919437,1762139446275,-3938.48579411,0.000183,2]
[392919438,1762139460680,784.86545174,0.0001801,2]
[392919441,1762139580122,500.0,0.00037356,60]
[392919442,1762139589926,430.82411845,0.00037339,60]
[392919443,1762139609270,500.0,0.00037339,60]
[392919444,1762139609503,301.37744266,0.00037339,60]
[392919446,1762139618349,500.0,0.00037339,60]
[392919452,1762139643116,1000.0,0.00017507,2]
[392919456,1762139717919,151.0,0.00037339,120]
[392919457,1762139718516,156.587,0.00037339,120]
[392919458,1762139719179,162.380719,0.00037339,120]
[392919459,1762139719823,168.3888056,0.00037339,120]
[392919461,1762139720471,174.61919141,0.00037339,120]
[392919462,1762139721087,181.08010149,0.00037339,120]
[392919463,1762139721734,187.78006525,0.00037339,120]
[392919464,1762139722371,194.72792766,0.00037339,120]
[392919465,1762139722967,201.93286099,0.00037339,120]
[392919466,1762139723590,209.40437684,0.00037339,120]
[392919467,1762139724251,217.15233878,0.00037339,120]
[392919468,1762139725024,225.18697532,0.00037339,120]
[392919469,1762139725473,233.51889341,0.00037339,120]
[392919470,1762139726132,242.15909246,0.00037339,120]
[392919471,1762139726799,251.11897888,0.00037339,120]
[392919480,1762139954818,160.24328611,0.00037362,20]
[392919485,1762140078257,500.0,0.00037362,60]
[392919487,1762140078506,500.0,0.00037362,60]
[392919488,1762140078742,500.0,0.00037362,60]
[392919494,1762140114674,500.0,0.00037362,60]
[392919495,1762140115001,500.0,0.00037362,60]
[392919496,1762140115241,186.83995768,0.00037362,60]
[392919503,1762140189587,1895.41555579,0.00017936,2]
[392919504,1762140203293,-500.00247023,0.00018043,2]
[392919505,1762140207209,-337.97783808,0.00018043,2]
[392919506,1762140209231,-162.02216189,0.00018043,2]
[392919507,1762140244098,5000.0,0.0001801,2]
[392919513,1762140311859,155.90268391,0.00037364,120]
[392919518,1762140348718,777.0,0.00018,2]
[392919519,1762140372939,1000.0,0.00018,2]
[392919525,1762140509760,286.44172927,0.0003015,120]
[392919529,1762140553831,162.858638,0.00017564,2]
[392919585,1762140632295,-229.58345752,0.00018155,2]
[392919587,1762140632305,-236.0,0.00018155,2]
[392919589,1762140632315,-262.98257276,0.00018189,2]
[392919591,1762140632325,-1200.0,0.00018197,2]
[392919593,1762140632334,-268.0,0.00018198,2]
[392919595,1762140632348,-300.0,0.00018198,2]
[392919597,1762140632359,-300.0,0.00018198,2]
[392919599,1762140632368,-300.0,0.00018198,2]
[392919601,1762140632378,-300.0,0.00018198,2]
[392919603,1762140632390,-954.98749401,0.00018199,2]
[392919605,1762140632400,-500.0,0.00018199,2]
[392919608,1762140632409,-3864.52097152,0.000182,2]
[392919611,1762140632421,-10140.20094896,0.000182,2]
[392919612,1762140632430,-500.0,0.00018398,2]
[392919614,1762140632440,-500.0,0.00018398,2]
[392919616,1762140632450,-514.24218317,0.00018399,2]
[392919618,1762140632459,-53.67211657,0.00018399,2]
[392919621,1762140632471,-457.12608381,0.00018399,2]
[392919623,1762140632481,-45.45932888,0.00018399,2]
[392919625,1762140632492,-454.54067112,0.00018399,2]
[392919627,1762140632502,-500.0,0.00018399,2]
[392919629,1762140632512,-374.84634633,0.00018399,2]
[392919631,1762140632521,-77.32558098,0.00018429,2]
[392919633,1762140632533,-167.49335667,0.00018429,2]
[392919635,1762140632542,-338.19704044,0.00018664,2]
[392919730,1762140638239,-500.0,0.00018199,2]
[392919731,1762140638249,-227.20428944,0.00018199,2]
[392919732,1762140638260,-500.0,0.00018199,2]
[392919734,1762140638270,-161.80295956,0.00018664,2]
[392919735,1762140638283,-500.0,0.00018664,2]
[392919736,1762140638293,-300.0,0.00018665,2]
[392919737,1762140638307,-300.0,0.00018665,2]
[392919738,1762140638317,-300.0,0.00018665,2]
[392919739,1762140638326,-300.0,0.00018665,2]
[392919740,1762140638336,-300.0,0.00018665,2]
[392919741,1762140638352,-300.0,0.00018665,2]
[392919742,1762140638362,-300.0,0.00018665,2]
[392919743,1762140638373,-300.0,0.00018665,2]
[392919744,1762140638385,-300.0,0.00018665,2]
[392919745,1762140638394,-300.0,0.00018665,2]
[392919746,1762140638405,-300.0,0.00018665,2]
[392919748,1762140638415,-300.0,0.00018665,2]
[392919749,1762140638424,-300.0,0.00018665,2]
[392919751,1762140638434,-300.0,0.00018665,2]
[392919754,1762140638444,-300.0,0.00018665,2]
[392919757,1762140638453,-600.0,0.00018665,2]
[392919759,1762140638463,-1482.57291189,0.00019073,2]
[392919760,1762140638472,-150.0,0.00019578,2]
[392919761,1762140638482,-638.72337059,0.00019763,2]
[392919762,1762140638491,-500.0,0.00019763,2]
[392919763,1762140638501,-420.0,0.00019852,2]
[392919764,1762140638510,-288.52911644,0.00019883,2]
[392919765,1762140638520,-288.23857485,0.00019883,2]
[392919766,1762140638530,-288.2382843,0.00019883,2]
[392919767,1762140638540,-288.23828401,0.00019883,2]
[392919768,1762140638551,-576.18832974,0.00019883,2]
[392919769,1762140638561,-576.18832974,0.00019883,2]
[392919770,1762140638571,-500.0,0.00019899,2]
[392919771,1762140638581,-7589.6,0.000199,2]
[392919772,1762140638595,-1680.0,0.00019948,2]
[392919773,1762140638607,-579.07071257,0.00019992,2]
[392919774,1762140638616,-190.65340002,0.000201,2]
[392919775,1762140638628,-190.65339907,0.000201,2]
[392919776,1762140638638,-190.65339907,0.000201,2]
[392919777,1762140638648,-7589.6,0.000201,2]
[392919778,1762140638657,-190.65435233,0.00020101,2]
[392919779,1762140638667,-270.90847988,0.00020155,2]
[392919780,1762140638676,-760.963478,0.00020187,2]
[392919781,1762140638686,-264.15847504,0.00020206,2]
[392919782,1762140638695,-195.62038484,0.00020311,2]
[392919783,1762140638705,-191.60666606,0.00020392,2]
[392919784,1762140638714,-7589.6,0.000204,2]
[392919785,1762140638724,-627.0,0.00020521,2]
[392919786,1762140638733,-985.0,0.00020521,2]
[392919787,1762140638746,-2164.0,0.00020521,2]
[392919788,1762140638756,-412.0,0.00020521,2]
[392919789,1762140638766,-720.0,0.00020531,2]
[392919790,1762140638776,-7589.6,0.000206,2]
[392919791,1762140638785,-500.0,0.00020679,2]
[392919792,1762140638795,-494.76135564,0.00020679,2]
[392919793,1762140638805,-156.0,0.0002068,2]
[392919794,1762140638815,-7589.6,0.000208,2]
[392919795,1762140638824,-162.858638,0.00020989,2]
[392919796,1762140638834,-3365.7756678,0.00021,2]
[392919797,1762140638845,-155.246248,0.00021076,2]
[392919798,1762140638854,-7589.6,0.000211,2]
[392919799,1762140638864,-6447.9,0.0002129,10]
[392919800,1762140638873,-7589.6,0.000213,2]
[392919801,1762140638883,-178.35,0.00021358,2]
[392919802,1762140638892,-7589.6,0.000215,2]
[392919803,1762140638901,-587.0,0.00021656,2]
[392919804,1762140638911,-5373.25,0.0002179,10]
[392919805,1762140638921,-288.2382843,0.00021795,3]
[392919806,1762140638931,-288.23828401,0.00021795,3]
[392919807,1762140638940,-576.18832974,0.00021795,3]
[392919808,1762140638950,-576.18832974,0.00021795,3]
[392919809,1762140638959,-7589.6,0.000218,2]
[392919810,1762140638968,-288.52911644,0.0002181,3]
[392919811,1762140638977,-288.23857485,0.0002181,3]
[392919812,1762140638988,-2351.0,0.00021868,2]
[392919813,1762140638997,-160.0,0.0002195,2]
[392919814,1762140639006,-579.07071257,0.00021962,3]
[392919815,1762140639016,-1735.62387814,0.00022,5]
[392919816,1762140639026,-21541.43999248,0.00022,2]
[392919817,1762140639036,-7589.6,0.00022,2]
[392919818,1762140639047,-404.18480381,0.00022118,2]
[392919819,1762140639057,-160.0,0.00022118,2]
[392919820,1762140639067,-312.23350223,0.00022155,2]
[392919821,1762140639076,-260.0,0.00022498,2]
[392919822,1762140639085,-864.0,0.00022585,20]
[392919823,1762140639098,-3692.06236791,0.00022603,2]
[392919824,1762140639107,-428.88964438,0.00022703,7]
[392919825,1762140639117,-150.0,0.00022703,7]
[392919826,1762140639127,-150.0,0.000229,2]
[392919827,1762140639137,-360.0,0.00023046,2]
[392919828,1762140639147,-267.53,0.00023138,2]
[392919829,1762140639157,-500.0,0.00023287,2]
[392919830,1762140639167,-10140.7793959,0.00023288,30]
[392919831,1762140639177,-627.0,0.00023521,2]
[392919832,1762140639187,-985.0,0.00023521,2]
[392919833,1762140639197,-2164.0,0.00023521,2]
[392919834,1762140639207,-412.0,0.00023521,2]
[392919835,1762140639216,-460.0,0.00023594,2]
[392919836,1762140639225,-3683.21,0.000236,7]
[392919837,1762140639234,-823.0,0.00023625,2]
[392919838,1762140639244,-288.2382843,0.00023706,4]
[392919839,1762140639254,-288.23828401,0.00023706,4]
[392919840,1762140639263,-576.18832974,0.00023706,4]
[392919841,1762140639272,-576.18832974,0.00023706,4]
[392919842,1762140639282,-288.52911644,0.00023736,4]
[392919843,1762140639292,-288.23857485,0.00023736,4]
[392919844,1762140639305,-579.07071257,0.00023933,4]
[392919845,1762140639319,-190.65339907,0.00023933,4]
[392919846,1762140639463,-190.65339907,0.00023933,4]
[392919847,1762140639475,-3292.0,0.00023973,2]
[392919848,1762140639485,-190.65340002,0.0002398,4]
[392919849,1762140639495,-31223.18628235,0.0002399,2]
[392919850,1762140639504,-855.33962251,0.00024142,2]